[Event "Titled Tuesday Blitz July 11 Late 2023"]
[White "kiwibobo"]
[Black "Kollars, Dmitrij"]
[BlackFideId "12909572"]
[WhiteElo "2333"]
[BlackElo "2975"]
[Result "0-1"]
[Round "3"]
[TimeControl "180+2"]
[Date "2023.07.11"]
[WhiteClock "0:01:28"]
[BlackClock "0:02:09"]
[Board "55"]

1. e4 {[%clk 0:03:00]}  c5 {[%clk 0:02:59]} 2. Nf3 {[%clk 0:03:00]}  e6 {[%clk 0:03:00]} 3. d4 {[%clk 0:03:00]}  cxd4 {[%clk 0:03:01]} 4. Nxd4 {[%clk 0:02:59]}  Nf6 {[%clk 0:03:01]} 5. Nc3 {[%clk 0:02:59]}  Nc6 {[%clk 0:03:01]} 6. Nxc6 {[%clk 0:02:59]}  bxc6 {[%clk 0:03:00]} 7. e5 {[%clk 0:03:00]}  Nd5 {[%clk 0:03:01]} 8. Ne4 {[%clk 0:03:01]}  Qc7 {[%clk 0:03:01]} 9. f4 {[%clk 0:03:01]}  Qb6 {[%clk 0:03:01]} 10. c4 {[%clk 0:03:02]}  Bb4+ {[%clk 0:03:00]} 11. Ke2 {[%clk 0:03:03]}  f5 {[%clk 0:03:01]} 12. Nf2 {[%clk 0:03:02]}  Ne7 {[%clk 0:02:59]} 13. Kf3 {[%clk 0:03:00]}  g5 {[%clk 0:02:50]} 14. fxg5 {[%clk 0:02:45]}  Ng6 {[%clk 0:02:51]} 15. h4 {[%clk 0:02:43]}  Nxe5+ {[%clk 0:02:48]} 16. Kg3 {[%clk 0:02:43]}  O-O {[%clk 0:02:42]} 17. Bf4 {[%clk 0:02:36]}  Ng6 {[%clk 0:02:40]} 18. Nd3 {[%clk 0:02:32]}  Nxf4 {[%clk 0:02:40]} 19. Nxf4 {[%clk 0:02:32]}  Qc7 {[%clk 0:02:37]} 20. Kf3 {[%clk 0:01:50]}  e5 {[%clk 0:02:22]} 21. Ne2 {[%clk 0:01:42]}  e4+ {[%clk 0:02:19]} 22. Kf2 {[%clk 0:01:41]}  Bc5+ {[%clk 0:02:17]} 23. Ke1 {[%clk 0:01:38]}  f4 {[%clk 0:02:10]} 24. a3 {[%clk 0:01:35]}  f3 {[%clk 0:02:09]} 25. gxf3 {[%clk 0:01:28]}  exf3 {[%clk 0:02:09]} 0-1


[Site "https://www.chess.com"]

[Event "Titled Tuesday Blitz July 11 Late 2023"]
[White "Osmak, Yuliia"]
[Black "Kramnik, Vladimir"]
[WhiteFideId "14101602"]
[BlackFideId "4101588"]
[WhiteElo "2515"]
[BlackElo "2968"]
[Result "0-1"]
[Round "3"]
[TimeControl "180+2"]
[Date "2023.07.11"]
[WhiteClock "0:00:02"]
[BlackClock "0:00:14"]
[Board "56"]

1. d4 {[%clk 0:03:00]}  d5 {[%clk 0:02:56]} 2. c4 {[%clk 0:03:00]}  e6 {[%clk 0:02:56]} 3. Nc3 {[%clk 0:03:00]}  Nf6 {[%clk 0:02:56]} 4. cxd5 {[%clk 0:03:00]}  exd5 {[%clk 0:02:56]} 5. Bg5 {[%clk 0:03:00]}  c6 {[%clk 0:02:55]} 6. e3 {[%clk 0:02:59]}  h6 {[%clk 0:02:56]} 7. Bh4 {[%clk 0:02:57]}  Be7 {[%clk 0:02:56]} 8. Bd3 {[%clk 0:02:55]}  O-O {[%clk 0:02:57]} 9. Qc2 {[%clk 0:02:54]}  Re8 {[%clk 0:02:55]} 10. Nf3 {[%clk 0:02:46]}  Ne4 {[%clk 0:02:55]} 11. Bxe7 {[%clk 0:02:43]}  Qxe7 {[%clk 0:02:55]} 12. Bxe4 {[%clk 0:02:28]}  dxe4 {[%clk 0:02:55]} 13. Nd2 {[%clk 0:02:27]}  Bf5 {[%clk 0:02:44]} 14. O-O {[%clk 0:02:23]}  Na6 {[%clk 0:02:42]} 15. a3 {[%clk 0:02:20]}  Nc7 {[%clk 0:02:27]} 16. f3 {[%clk 0:02:06]}  Qg5 {[%clk 0:02:24]} 17. f4 {[%clk 0:02:00]}  Qe7 {[%clk 0:02:16]} 18. Rac1 {[%clk 0:01:53]}  Rad8 {[%clk 0:02:14]} 19. Qa4 {[%clk 0:01:47]}  Ne6 {[%clk 0:01:51]} 20. Qxa7 {[%clk 0:01:34]}  c5 {[%clk 0:01:30]} 21. d5 {[%clk 0:01:29]}  Nc7 {[%clk 0:01:15]} 22. Nb3 {[%clk 0:01:09]}  b6 {[%clk 0:00:55]} 23. Rfd1 {[%clk 0:00:54]}  Nxd5 {[%clk 0:00:52]} 24. Qxe7 {[%clk 0:00:51]}  Nxe7 {[%clk 0:00:53]} 25. Kf2 {[%clk 0:00:25]}  Be6 {[%clk 0:00:49]} 26. Nd2 {[%clk 0:00:22]}  Bg4 {[%clk 0:00:49]} 27. Ndxe4 {[%clk 0:00:15]}  Bxd1 {[%clk 0:00:48]} 28. Rxd1 {[%clk 0:00:16]}  Rxd1 {[%clk 0:00:47]} 29. Nxd1 {[%clk 0:00:17]}  Nd5 {[%clk 0:00:45]} 30. Ndc3 {[%clk 0:00:16]}  Nxc3 {[%clk 0:00:42]} 31. Nxc3 {[%clk 0:00:17]}  Rd8 {[%clk 0:00:41]} 32. Ke2 {[%clk 0:00:17]}  f5 {[%clk 0:00:41]} 33. h3 {[%clk 0:00:15]}  Kf7 {[%clk 0:00:40]} 34. g4 {[%clk 0:00:15]}  g6 {[%clk 0:00:40]} 35. gxf5 {[%clk 0:00:15]}  gxf5 {[%clk 0:00:40]} 36. e4 {[%clk 0:00:12]}  fxe4 {[%clk 0:00:36]} 37. Nxe4 {[%clk 0:00:13]}  Ke6 {[%clk 0:00:35]} 38. Ke3 {[%clk 0:00:13]}  Rd1 {[%clk 0:00:35]} 39. Nc3 {[%clk 0:00:10]}  Rh1 {[%clk 0:00:33]} 40. Ke4 {[%clk 0:00:10]}  Re1+ {[%clk 0:00:29]} 41. Kf3 {[%clk 0:00:10]}  Kf5 {[%clk 0:00:20]} 42. Nd5 {[%clk 0:00:10]}  Rb1 {[%clk 0:00:19]} 43. Ne3+ {[%clk 0:00:07]}  Ke6 {[%clk 0:00:18]} 44. f5+ {[%clk 0:00:04]}  Kf7 {[%clk 0:00:18]} 45. Nc4 {[%clk 0:00:03]}  b5 {[%clk 0:00:15]} 46. Nd6+ {[%clk 0:00:03]}  Kf6 {[%clk 0:00:15]} 47. Nxb5 {[%clk 0:00:04]}  Rxb2 {[%clk 0:00:14]} 48. Kg4 {[%clk 0:00:02]}  Rxb5 {[%clk 0:00:14]} 0-1


[Site "https://www.chess.com"]

[Event "Titled Tuesday Blitz July 11 Late 2023"]
[White "Tang, Andrew"]
[Black "Dixit, Nikhil"]
[WhiteFideId "2059630"]
[BlackFideId "5059534"]
[WhiteElo "2909"]
[BlackElo "2514"]
[Result "1-0"]
[Round "3"]
[TimeControl "180+2"]
[Date "2023.07.11"]
[WhiteClock "0:01:15"]
[BlackClock "0:00:23"]
[Board "58"]

1. d4 {[%clk 0:03:00]}  Nf6 {[%clk 0:02:48]} 2. c4 {[%clk 0:02:57]}  g6 {[%clk 0:02:48]} 3. f3 {[%clk 0:02:52]}  Bg7 {[%clk 0:02:47]} 4. e4 {[%clk 0:02:53]}  O-O {[%clk 0:02:47]} 5. Nc3 {[%clk 0:02:53]}  d6 {[%clk 0:02:45]} 6. Nge2 {[%clk 0:02:54]}  c6 {[%clk 0:02:37]} 7. Be3 {[%clk 0:02:54]}  a6 {[%clk 0:02:36]} 8. c5 {[%clk 0:02:54]}  b5 {[%clk 0:02:35]} 9. cxd6 {[%clk 0:02:54]}  exd6 {[%clk 0:02:35]} 10. Nf4 {[%clk 0:02:53]}  b4 {[%clk 0:02:34]} 11. Na4 {[%clk 0:02:52]}  d5 {[%clk 0:02:23]} 12. e5 {[%clk 0:02:48]}  Ne8 {[%clk 0:02:22]} 13. Nd3 {[%clk 0:02:44]}  Nc7 {[%clk 0:02:22]} 14. Nxb4 {[%clk 0:02:41]}  Nb5 {[%clk 0:02:11]} 15. Be2 {[%clk 0:02:31]}  f6 {[%clk 0:02:04]} 16. exf6 {[%clk 0:02:15]}  Qxf6 {[%clk 0:01:56]} 17. Nb6 {[%clk 0:02:04]}  Ra7 {[%clk 0:01:55]} 18. Nxc8 {[%clk 0:02:04]}  Rxc8 {[%clk 0:01:55]} 19. Bxb5 {[%clk 0:01:58]}  Re7 {[%clk 0:01:45]} 20. O-O {[%clk 0:01:47]}  Rxe3 {[%clk 0:01:42]} 21. Nc2 {[%clk 0:01:39]}  Re7 {[%clk 0:01:21]} 22. Bd3 {[%clk 0:01:33]}  Nd7 {[%clk 0:01:20]} 23. Bxa6 {[%clk 0:01:32]}  Rce8 {[%clk 0:01:20]} 24. Qd2 {[%clk 0:01:30]}  Nb6 {[%clk 0:01:11]} 25. Rae1 {[%clk 0:01:28]}  h5 {[%clk 0:01:07]} 26. a3 {[%clk 0:01:22]}  h4 {[%clk 0:01:02]} 27. Rxe7 {[%clk 0:01:21]}  Rxe7 {[%clk 0:01:02]} 28. Re1 {[%clk 0:01:22]}  Rxe1+ {[%clk 0:00:54]} 29. Qxe1 {[%clk 0:01:23]}  Qf4 {[%clk 0:00:47]} 30. Qd1 {[%clk 0:01:22]}  h3 {[%clk 0:00:44]} 31. g3 {[%clk 0:01:22]}  Qf6 {[%clk 0:00:39]} 32. Bf1 {[%clk 0:01:21]}  Nc4 {[%clk 0:00:36]} 33. Bxc4 {[%clk 0:01:17]}  dxc4 {[%clk 0:00:37]} 34. Qf1 {[%clk 0:01:16]}  Qe6 {[%clk 0:00:35]} 35. Kf2 {[%clk 0:01:15]}  c3 {[%clk 0:00:33]} 36. bxc3 {[%clk 0:01:15]}  Qa2 {[%clk 0:00:24]} 37. Qd3 {[%clk 0:01:15]}  Qxa3 {[%clk 0:00:23]} 38. Nxa3 {[%clk 0:01:15]} 1-0


[Site "https://www.chess.com"]

[Event "Titled Tuesday Blitz July 11 Late 2023"]
[White "Ter-Sahakyan, Samvel"]
[Black "Tifferet, Shaked"]
[WhiteFideId "13302531"]
[BlackFideId "2811529"]
[WhiteElo "2837"]
[BlackElo "2514"]
[Result "1-0"]
[Round "3"]
[TimeControl "180+2"]
[Date "2023.07.11"]
[WhiteClock "0:00:05"]
[BlackClock "0:00:00"]
[Board "59"]

1. e4 {[%clk 0:03:00]}  c5 {[%clk 0:02:59]} 2. Nf3 {[%clk 0:03:00]}  d6 {[%clk 0:02:58]} 3. Bc4 {[%clk 0:03:00]}  e6 {[%clk 0:02:56]} 4. O-O {[%clk 0:02:59]}  Nf6 {[%clk 0:02:54]} 5. Re1 {[%clk 0:02:59]}  a6 {[%clk 0:02:53]} 6. Bf1 {[%clk 0:02:55]}  Be7 {[%clk 0:02:52]} 7. c3 {[%clk 0:02:55]}  O-O {[%clk 0:02:51]} 8. d4 {[%clk 0:02:56]}  d5 {[%clk 0:02:41]} 9. e5 {[%clk 0:02:55]}  Nfd7 {[%clk 0:02:39]} 10. Bd3 {[%clk 0:02:54]}  Nc6 {[%clk 0:02:38]} 11. Nbd2 {[%clk 0:02:51]}  cxd4 {[%clk 0:02:38]} 12. cxd4 {[%clk 0:02:51]}  Qb6 {[%clk 0:02:34]} 13. Nf1 {[%clk 0:02:50]}  f5 {[%clk 0:02:25]} 14. exf6 {[%clk 0:02:44]}  Nxf6 {[%clk 0:02:19]} 15. Ng3 {[%clk 0:02:44]}  Kh8 {[%clk 0:02:03]} 16. Bc2 {[%clk 0:02:28]}  Bd7 {[%clk 0:01:59]} 17. a3 {[%clk 0:02:26]}  Rac8 {[%clk 0:01:49]} 18. Rb1 {[%clk 0:02:19]}  Bd6 {[%clk 0:01:33]} 19. Be3 {[%clk 0:02:15]}  Qc7 {[%clk 0:01:23]} 20. Rc1 {[%clk 0:01:56]}  Qb6 {[%clk 0:01:23]} 21. Rb1 {[%clk 0:01:55]}  Qc7 {[%clk 0:01:23]} 22. Bd3 {[%clk 0:01:54]}  Ng4 {[%clk 0:01:14]} 23. Bd2 {[%clk 0:01:13]}  e5 {[%clk 0:00:59]} 24. dxe5 {[%clk 0:01:11]}  Ncxe5 {[%clk 0:00:59]} 25. Be2 {[%clk 0:00:37]}  Bc5 {[%clk 0:00:54]} 26. Rf1 {[%clk 0:00:37]}  Qb6 {[%clk 0:00:38]} 27. Be1 {[%clk 0:00:35]}  Ng6 {[%clk 0:00:24]} 28. b4 {[%clk 0:00:32]}  Bd6 {[%clk 0:00:23]} 29. Rc1 {[%clk 0:00:12]}  Rce8 {[%clk 0:00:21]} 30. Bd2 {[%clk 0:00:08]}  h6 {[%clk 0:00:17]} 31. Nh5 {[%clk 0:00:06]}  Rf5 {[%clk 0:00:16]} 32. Ng3 {[%clk 0:00:03]}  Rf7 {[%clk 0:00:16]} 33. Bd3 {[%clk 0:00:04]}  Nf4 {[%clk 0:00:16]} 34. Bxf4 {[%clk 0:00:04]}  Rxf4 {[%clk 0:00:16]} 35. Rc2 {[%clk 0:00:03]}  Ref8 {[%clk 0:00:16]} 36. Re2 {[%clk 0:00:03]}  Bc6 {[%clk 0:00:15]} 37. Qc2 {[%clk 0:00:03]}  Qd8 {[%clk 0:00:14]} 38. Rfe1 {[%clk 0:00:03]}  Rxf3 {[%clk 0:00:14]} 39. gxf3 {[%clk 0:00:03]}  Rxf3 {[%clk 0:00:14]} 40. Bg6 {[%clk 0:00:03]}  Nf6 {[%clk 0:00:11]} 41. Bh5 {[%clk 0:00:02]}  Rf4 {[%clk 0:00:10]} 42. Bg6 {[%clk 0:00:02]}  d4 {[%clk 0:00:10]} 43. Qd3 {[%clk 0:00:02]}  Qf8 {[%clk 0:00:08]} 44. Bf5 {[%clk 0:00:02]}  Nd5 {[%clk 0:00:07]} 45. Bg6 {[%clk 0:00:02]}  Nc3 {[%clk 0:00:07]} 46. Re8 {[%clk 0:00:01]}  Bxe8 {[%clk 0:00:07]} 47. Rxe8 {[%clk 0:00:01]}  Rxf2 {[%clk 0:00:06]} 48. Rxf8+ {[%clk 0:00:02]}  Rxf8 {[%clk 0:00:07]} 49. Qc4 {[%clk 0:00:02]}  Bxg3 {[%clk 0:00:05]} 50. hxg3 {[%clk 0:00:03]}  Nb5 {[%clk 0:00:05]} 51. Qd3 {[%clk 0:00:03]}  Rd8 {[%clk 0:00:05]} 52. Bf7 {[%clk 0:00:03]}  Nd6 {[%clk 0:00:03]} 53. Bb3 {[%clk 0:00:03]}  Ne8 {[%clk 0:00:03]} 54. Bc2 {[%clk 0:00:03]}  Nf6 {[%clk 0:00:04]} 55. Kg2 {[%clk 0:00:03]}  Kg8 {[%clk 0:00:04]} 56. Kh3 {[%clk 0:00:03]}  Kf8 {[%clk 0:00:05]} 57. Bb3 {[%clk 0:00:04]}  Rd6 {[%clk 0:00:05]} 58. Qg6 {[%clk 0:00:02]}  Rd7 {[%clk 0:00:03]} 59. Bc2 {[%clk 0:00:02]}  b6 {[%clk 0:00:03]} 60. Bd3 {[%clk 0:00:03]}  a5 {[%clk 0:00:02]} 61. Qf5 {[%clk 0:00:03]}  Re7 {[%clk 0:00:02]} 62. bxa5 {[%clk 0:00:03]}  bxa5 {[%clk 0:00:03]} 63. Qxa5 {[%clk 0:00:03]}  Re3 {[%clk 0:00:04]} 64. Qd8+ {[%clk 0:00:03]}  Kf7 {[%clk 0:00:04]} 65. Qxd4 {[%clk 0:00:03]}  Re1 {[%clk 0:00:04]} 66. Bc4+ {[%clk 0:00:03]}  Kg6 {[%clk 0:00:03]} 67. Qd3+ {[%clk 0:00:04]}  Kg5 {[%clk 0:00:03]} 68. Qd2+ {[%clk 0:00:04]}  Re3 {[%clk 0:00:04]} 69. Qxe3+ {[%clk 0:00:04]}  Kh5 {[%clk 0:00:03]} 70. Be2+ {[%clk 0:00:04]}  Kg6 {[%clk 0:00:03]} 71. Bd3+ {[%clk 0:00:05]}  Kh5 {[%clk 0:00:03]} 72. Qe5+ {[%clk 0:00:05]}  g5 {[%clk 0:00:04]} 73. Be2+ {[%clk 0:00:05]}  Ng4 {[%clk 0:00:00]} 74. Bxg4+ {[%clk 0:00:05]} 1-0


[Site "https://www.chess.com"]

[Event "Titled Tuesday Blitz July 11 Late 2023"]
[White "Womacka, Mathias"]
[Black "Gareyev, Timur"]
[WhiteFideId "4611390"]
[BlackFideId "14200937"]
[WhiteElo "2507"]
[BlackElo "2802"]
[Result "1-0"]
[Round "3"]
[TimeControl "180+2"]
[Date "2023.07.11"]
[WhiteClock "0:00:37"]
[BlackClock "0:00:00"]
[Board "61"]

1. e4 {[%clk 0:03:00]}  d5 {[%clk 0:02:47]} 2. exd5 {[%clk 0:02:59]}  Qxd5 {[%clk 0:02:48]} 3. Nc3 {[%clk 0:02:58]}  Qe5+ {[%clk 0:02:48]} 4. Be2 {[%clk 0:02:55]}  Nf6 {[%clk 0:02:46]} 5. d4 {[%clk 0:02:51]}  Qa5 {[%clk 0:02:44]} 6. Nf3 {[%clk 0:02:47]}  Nc6 {[%clk 0:02:44]} 7. Bd2 {[%clk 0:02:42]}  Bg4 {[%clk 0:02:32]} 8. Nb5 {[%clk 0:02:34]}  Qb6 {[%clk 0:02:31]} 9. c4 {[%clk 0:02:34]}  Bxf3 {[%clk 0:02:16]} 10. Bxf3 {[%clk 0:02:27]}  a6 {[%clk 0:02:10]} 11. d5 {[%clk 0:02:12]}  Ne5 {[%clk 0:01:59]} 12. Nc3 {[%clk 0:02:05]}  O-O-O {[%clk 0:01:55]} 13. O-O {[%clk 0:01:59]}  e6 {[%clk 0:01:49]} 14. Bf4 {[%clk 0:01:51]}  Nxc4 {[%clk 0:01:37]} 15. Qe2 {[%clk 0:01:49]}  exd5 {[%clk 0:01:27]} 16. Nxd5 {[%clk 0:01:45]}  Nxd5 {[%clk 0:01:19]} 17. Bxd5 {[%clk 0:01:39]}  Rxd5 {[%clk 0:01:16]} 18. Qxc4 {[%clk 0:01:38]}  Qc6 {[%clk 0:01:01]} 19. Qxc6 {[%clk 0:01:27]}  bxc6 {[%clk 0:01:02]} 20. Rac1 {[%clk 0:01:27]}  Kd7 {[%clk 0:01:00]} 21. Rc4 {[%clk 0:01:27]}  Bd6 {[%clk 0:00:59]} 22. Be3 {[%clk 0:01:27]}  Rb8 {[%clk 0:00:57]} 23. b3 {[%clk 0:01:23]}  Rb4 {[%clk 0:00:55]} 24. Rxb4 {[%clk 0:01:17]}  Bxb4 {[%clk 0:00:56]} 25. Rc1 {[%clk 0:01:16]}  Bd2 {[%clk 0:00:34]} 26. Rc4 {[%clk 0:01:12]}  Bxe3 {[%clk 0:00:26]} 27. fxe3 {[%clk 0:01:12]}  Rd1+ {[%clk 0:00:25]} 28. Kf2 {[%clk 0:01:12]}  Rd2+ {[%clk 0:00:26]} 29. Kf3 {[%clk 0:01:11]}  Rxa2 {[%clk 0:00:26]} 30. Rd4+ {[%clk 0:00:58]}  Kc8 {[%clk 0:00:15]} 31. Rc4 {[%clk 0:00:58]}  Kb7 {[%clk 0:00:14]} 32. Rb4+ {[%clk 0:00:59]}  Ka7 {[%clk 0:00:15]} 33. Rc4 {[%clk 0:00:59]}  Kb6 {[%clk 0:00:15]} 34. Rb4+ {[%clk 0:00:59]}  Kc5 {[%clk 0:00:16]} 35. Rc4+ {[%clk 0:00:59]}  Kb5 {[%clk 0:00:16]} 36. Re4 {[%clk 0:00:52]}  Rb2 {[%clk 0:00:16]} 37. Re7 {[%clk 0:00:52]}  Kb6 {[%clk 0:00:14]} 38. Rxf7 {[%clk 0:00:51]}  Rxb3 {[%clk 0:00:14]} 39. Rxg7 {[%clk 0:00:51]}  a5 {[%clk 0:00:14]} 40. Rxh7 {[%clk 0:00:45]}  a4 {[%clk 0:00:13]} 41. Rh8 {[%clk 0:00:45]}  Kb7 {[%clk 0:00:08]} 42. Rh4 {[%clk 0:00:44]}  a3 {[%clk 0:00:05]} 43. Ra4 {[%clk 0:00:43]}  Kb6 {[%clk 0:00:06]} 44. h4 {[%clk 0:00:41]}  Kb5 {[%clk 0:00:06]} 45. Ra8 {[%clk 0:00:40]}  c5 {[%clk 0:00:06]} 46. h5 {[%clk 0:00:39]}  c4 {[%clk 0:00:05]} 47. h6 {[%clk 0:00:38]}  Rb1 {[%clk 0:00:00]} 48. Rb8+ {[%clk 0:00:37]} 1-0


[Site "https://www.chess.com"]

[Event "Titled Tuesday Blitz July 11 Late 2023"]
[White "Rakitic2010"]
[Black "Bazeev, German"]
[BlackFideId "24119350"]
[WhiteElo "2507"]
[BlackElo "2799"]
[Result "1/2-1/2"]
[Round "3"]
[TimeControl "180+2"]
[Date "2023.07.11"]
[WhiteClock "0:00:13"]
[BlackClock "0:00:12"]
[Board "62"]

1. e4 {[%clk 0:03:00]}  c5 {[%clk 0:02:59]} 2. Nf3 {[%clk 0:02:59]}  e6 {[%clk 0:02:59]} 3. d4 {[%clk 0:02:58]}  cxd4 {[%clk 0:03:00]} 4. Nxd4 {[%clk 0:02:59]}  a6 {[%clk 0:03:00]} 5. Bd3 {[%clk 0:02:59]}  Qc7 {[%clk 0:02:53]} 6. O-O {[%clk 0:02:59]}  Nf6 {[%clk 0:02:53]} 7. Qe2 {[%clk 0:02:59]}  d6 {[%clk 0:02:53]} 8. c4 {[%clk 0:02:59]}  b6 {[%clk 0:02:52]} 9. Nc3 {[%clk 0:03:00]}  Bb7 {[%clk 0:02:51]} 10. f4 {[%clk 0:02:57]}  Nbd7 {[%clk 0:02:46]} 11. Be3 {[%clk 0:02:55]}  Be7 {[%clk 0:02:45]} 12. Rae1 {[%clk 0:02:55]}  h5 {[%clk 0:02:39]} 13. Bf2 {[%clk 0:02:50]}  Ng4 {[%clk 0:02:26]} 14. f5 {[%clk 0:02:16]}  d5 {[%clk 0:01:03]} 15. Bg3 {[%clk 0:02:07]}  Qc5 {[%clk 0:01:03]} 16. exd5 {[%clk 0:01:48]}  Qxd4+ {[%clk 0:00:56]} 17. Kh1 {[%clk 0:01:49]}  e5 {[%clk 0:00:41]} 18. Be4 {[%clk 0:01:29]}  Bd6 {[%clk 0:00:25]} 19. h3 {[%clk 0:01:11]}  Qc5 {[%clk 0:00:25]} 20. Na4 {[%clk 0:01:01]}  Qc7 {[%clk 0:00:24]} 21. hxg4 {[%clk 0:00:58]}  hxg4+ {[%clk 0:00:24]} 22. Kg1 {[%clk 0:00:58]}  b5 {[%clk 0:00:25]} 23. cxb5 {[%clk 0:00:56]}  axb5 {[%clk 0:00:26]} 24. Nc3 {[%clk 0:00:57]}  Ba6 {[%clk 0:00:22]} 25. Bf2 {[%clk 0:00:44]}  g3 {[%clk 0:00:22]} 26. Be3 {[%clk 0:00:44]}  Qb7 {[%clk 0:00:14]} 27. b4 {[%clk 0:00:42]}  Bxb4 {[%clk 0:00:14]} 28. d6 {[%clk 0:00:41]}  Qb8 {[%clk 0:00:11]} 29. Nd5 {[%clk 0:00:41]}  Bxd6 {[%clk 0:00:10]} 30. Qg4 {[%clk 0:00:35]}  Kf8 {[%clk 0:00:05]} 31. f6 {[%clk 0:00:33]}  Nxf6 {[%clk 0:00:05]} 32. Nxf6 {[%clk 0:00:33]}  gxf6 {[%clk 0:00:06]} 33. Rxf6 {[%clk 0:00:33]}  Be7 {[%clk 0:00:06]} 34. Ref1 {[%clk 0:00:31]}  Bxf6 {[%clk 0:00:05]} 35. Rxf6 {[%clk 0:00:32]}  Ra7 {[%clk 0:00:06]} 36. Bc5+ {[%clk 0:00:30]}  Re7 {[%clk 0:00:05]} 37. Qe6 {[%clk 0:00:27]}  Qe8 {[%clk 0:00:05]} 38. Bc6 {[%clk 0:00:26]}  Kg7 {[%clk 0:00:05]} 39. Qxe7 {[%clk 0:00:19]}  Qxe7 {[%clk 0:00:05]} 40. Bxe7 {[%clk 0:00:20]}  Rc8 {[%clk 0:00:05]} 41. Bd5 {[%clk 0:00:17]}  b4 {[%clk 0:00:05]} 42. Rxf7+ {[%clk 0:00:17]}  Kg6 {[%clk 0:00:06]} 43. Rf1 {[%clk 0:00:09]}  Bxf1 {[%clk 0:00:05]} 44. Kxf1 {[%clk 0:00:10]}  Rc7 {[%clk 0:00:05]} 45. Bxb4 {[%clk 0:00:10]}  Rc1+ {[%clk 0:00:06]} 46. Ke2 {[%clk 0:00:10]}  Kf5 {[%clk 0:00:07]} 47. Bb3 {[%clk 0:00:10]}  e4 {[%clk 0:00:07]} 48. Bd2 {[%clk 0:00:11]}  Rg1 {[%clk 0:00:07]} 49. Ke3 {[%clk 0:00:10]}  Rxg2 {[%clk 0:00:07]} 50. Bc2 {[%clk 0:00:10]}  Rxd2 {[%clk 0:00:07]} 51. Bxe4+ {[%clk 0:00:10]}  Ke5 {[%clk 0:00:07]} 52. Kxd2 {[%clk 0:00:10]}  Kxe4 {[%clk 0:00:08]} 53. Ke2 {[%clk 0:00:11]}  Kf4 {[%clk 0:00:08]} 54. a4 {[%clk 0:00:10]}  Ke5 {[%clk 0:00:08]} 55. Kf3 {[%clk 0:00:10]}  Kd6 {[%clk 0:00:09]} 56. Kg2 {[%clk 0:00:09]}  Kc7 {[%clk 0:00:10]} 57. Kg1 {[%clk 0:00:10]}  Kb7 {[%clk 0:00:10]} 58. Kg2 {[%clk 0:00:11]}  Ka7 {[%clk 0:00:11]} 59. Kg1 {[%clk 0:00:12]}  Ka6 {[%clk 0:00:12]} 60. Kg2 {[%clk 0:00:13]}  Ka5 {[%clk 0:00:13]} 61. Kg1 {[%clk 0:00:14]}  Kxa4 {[%clk 0:00:14]} 62. Kg2 {[%clk 0:00:15]}  Ka3 {[%clk 0:00:10]} 63. Kg1 {[%clk 0:00:13]}  g2 {[%clk 0:00:11]} 64. Kf2 {[%clk 0:00:13]}  g1=Q+ {[%clk 0:00:12]} 65. Kxg1 {[%clk 0:00:13]} 1/2-1/2


[Site "https://www.chess.com"]

[Event "Titled Tuesday Blitz July 11 Late 2023"]
[White "Forgacs, Attila Jr."]
[Black "Bartel, Mateusz"]
[WhiteFideId "773654"]
[BlackFideId "1112635"]
[WhiteElo "2504"]
[BlackElo "2782"]
[Result "0-1"]
[Round "3"]
[TimeControl "180+2"]
[Date "2023.07.11"]
[WhiteClock "0:00:00"]
[BlackClock "0:00:49"]
[Board "64"]

1. e4 {[%clk 0:03:00]}  c5 {[%clk 0:02:56]} 2. Nf3 {[%clk 0:03:00]}  e6 {[%clk 0:02:55]} 3. d4 {[%clk 0:03:00]}  cxd4 {[%clk 0:02:56]} 4. Nxd4 {[%clk 0:03:00]}  Nf6 {[%clk 0:02:57]} 5. Nc3 {[%clk 0:03:00]}  d6 {[%clk 0:02:54]} 6. Be3 {[%clk 0:02:56]}  a6 {[%clk 0:02:51]} 7. f3 {[%clk 0:02:55]}  b5 {[%clk 0:02:49]} 8. Qd2 {[%clk 0:02:55]}  Nbd7 {[%clk 0:02:47]} 9. g4 {[%clk 0:02:55]}  Nb6 {[%clk 0:02:46]} 10. a4 {[%clk 0:02:55]}  b4 {[%clk 0:02:44]} 11. Na2 {[%clk 0:02:51]}  d5 {[%clk 0:02:39]} 12. e5 {[%clk 0:02:38]}  Nfd7 {[%clk 0:02:38]} 13. f4 {[%clk 0:02:38]}  a5 {[%clk 0:02:30]} 14. Bb5 {[%clk 0:02:32]}  Qc7 {[%clk 0:02:28]} 15. b3 {[%clk 0:02:00]}  Bb7 {[%clk 0:02:13]} 16. O-O-O {[%clk 0:01:44]}  Be7 {[%clk 0:02:08]} 17. Kb1 {[%clk 0:01:43]}  O-O {[%clk 0:02:07]} 18. h4 {[%clk 0:01:29]}  Nc5 {[%clk 0:02:06]} 19. h5 {[%clk 0:01:17]}  Nc4 {[%clk 0:01:52]} 20. bxc4 {[%clk 0:00:52]}  dxc4 {[%clk 0:01:51]} 21. Bxc4 {[%clk 0:00:45]}  Bxh1 {[%clk 0:01:44]} 22. Rxh1 {[%clk 0:00:43]}  Nxa4 {[%clk 0:01:44]} 23. Bd3 {[%clk 0:00:19]}  Nc3+ {[%clk 0:01:41]} 24. Ka1 {[%clk 0:00:15]}  Rfd8 {[%clk 0:01:34]} 25. g5 {[%clk 0:00:13]}  Bc5 {[%clk 0:01:34]} 26. g6 {[%clk 0:00:12]}  Rxd4 {[%clk 0:01:25]} 27. Bxd4 {[%clk 0:00:12]}  Bxd4 {[%clk 0:01:25]} 28. gxf7+ {[%clk 0:00:11]}  Kf8 {[%clk 0:01:24]} 29. Qg2 {[%clk 0:00:06]}  Rb8 {[%clk 0:01:04]} 30. h6 {[%clk 0:00:05]}  g6 {[%clk 0:01:03]} 31. Bxg6 {[%clk 0:00:05]}  Nxa2+ {[%clk 0:00:55]} 32. Kb1 {[%clk 0:00:00]}  b3 {[%clk 0:00:49]} 0-1


[Site "https://www.chess.com"]